bitfinex/quotes_SOLUSD_20260305
["timestamp","ask_amount","ask_price","bid_price","bid_amount"]
[1772722297078,11.07404093,90.75,90.684,0.14216157]
[1772722297395,11.01940517,90.749,90.684,0.14216157]
[1772722297602,11.07404093,90.74,90.684,0.28432314]
[1772722297796,2.97149623,90.739,90.684,0.28432314]
[1772722298675,2.97149623,90.739,90.664,44.11888057]
[1772722298676,2.97149623,90.719,90.674,11.02844757]
[1772722299488,2.97149623,90.719,90.675,0.14216157]
[1772722299688,3.69383402,90.749,90.679,3.40800104]
[1772722299689,2.97149623,90.749,90.679,3.40800104]
[1772722299891,2.97149623,90.748,90.679,3.40800104]
[1772722300090,2.97149623,90.739,90.68,0.14216157]
[1772722300299,2.97149623,90.739,90.68,0.28432314]
[1772722300495,2.97149623,90.729,90.68,0.14216157]
[1772722300679,2.97149623,90.728,90.674,38.59974695]
[1772722300875,2.97149623,90.709,90.65,3.1236779]
[1772722301092,2.97149623,90.738,90.653,3.1236779]
[1772722301382,2.97149623,90.729,90.668,3.1236779]
[1772722301602,2.97149623,90.729,90.676,3.1236779]
[1772722301787,2.97149623,90.727,90.666,0.28432314]
[1772722301986,2.97149623,90.727,90.666,3.40800104]
[1772722302301,2.97149623,90.741,90.676,3.1236779]
[1772722302485,11.01685578,90.77,90.694,3.1236779]
[1772722302678,11.01610016,90.777,90.711,0.28432314]
[1772722302878,11.01610016,90.777,90.715,3.40800104]
[1772722303180,11.07404093,90.81,90.72,0.28432314]
[1772722303379,27.5310822,90.807,90.731,3.1236779]
[1772722303688,11.01552086,90.781,90.728,3.1236779]
[1772722303894,11.01552086,90.781,90.727,3.1236779]
[1772722304096,1.10330218,90.808,90.731,3.1236779]
[1772722304301,11.07404093,90.8,90.741,3.1236779]
[1772722304604,11.01484659,90.787,90.742,3.40800104]
[1772722304783,2.97149623,90.809,90.742,3.40800104]
[1772722304985,2.97149623,90.808,90.742,3.40800104]
[1772722305187,2.97149623,90.799,90.742,3.1236779]
[1772722305502,2.97149623,90.787,90.734,3.1236779]
[1772722305686,2.97149623,90.787,90.735,3.40800104]
[1772722306298,1.10330218,90.8,90.735,3.40800104]
[1772722306500,2.97149623,90.799,90.737,3.40800104]
[1772722306705,2.97149623,90.798,90.737,2.74333414]
[1772722307225,2.97149623,90.812,90.738,4.82477569]
[1772722307509,2.97149623,90.849,90.746,8.66077128]
[1772722307886,2.97149623,90.839,90.746,8.66077128]
[1772722308087,2.97149623,90.839,90.75,4.96693726]
[1772722308308,2.97149623,90.859,90.75,4.96693726]
[1772722308485,2.97149623,90.849,90.75,4.96693726]
[1772722308685,2.97149623,90.829,90.76,0.14216157]
[1772722308906,3.17218469,90.809,90.756,0.14216157]
[1772722309101,1.10330218,90.828,90.757,3.01810519]
[1772722309293,1.10330218,90.854,90.761,3.01810519]
[1772722309607,44.01371839,90.881,90.766,3.30242833]
[1772722309608,11.0072758,90.849,90.766,3.30242833]
[1772722309789,38.52546532,90.849,90.766,3.30242833]
[1772722310184,1.10330218,90.868,90.766,3.30242833]
[1772722310413,43.99588066,90.918,90.774,3.69383402]
[1772722310414,11.07404093,90.89,90.774,3.69383402]
[1772722310704,1.10330218,90.889,90.798,0.28432314]
[1772722311008,11.07404093,90.89,90.816,3.01810519]
[1772722311310,3.17218469,90.889,90.83,3.01810519]
[1772722311500,3.17218469,90.879,90.812,3.01810519]
[1772722311708,3.17218469,90.879,90.818,3.01810519]
[1772722311935,11.07404093,90.86,90.8,38.54625549]
[1772722312101,3.17218469,90.858,90.8,38.54625549]
[1772722312303,3.17218469,90.877,90.806,3.01810519]
[1772722312503,3.17218469,90.877,90.824,3.01810519]
[1772722312817,3.17218469,90.877,90.804,3.01810519]
[1772722313026,3.17218469,90.877,90.82,3.01810519]
[1772722313308,1.10330218,90.907,90.836,3.01810519]
[1772722313499,11.07404093,90.9,90.847,0.28432314]
[1772722313702,3.17218469,90.899,90.847,0.28432314]
[1772722313898,3.17218469,90.889,90.839,11.00848754]
[1772722314091,3.17218469,90.889,90.84,3.01810519]
[1772722314302,3.17218469,90.889,90.839,11.00848754]
[1772722314303,3.17218469,90.903,90.844,3.01810519]
[1772722314497,3.17218469,90.903,90.85,3.01810519]
[1772722315207,3.17218469,90.899,90.839,38.52970639]
[1772722315406,3.17218469,90.887,90.827,0.28432314]
[1772722315609,3.17218469,90.879,90.824,11.01030564]
[1772722315807,38.50893407,90.888,90.814,11.01151804]
[1772722315808,3.17218469,90.869,90.814,11.01151804]
[1772722316007,3.17218469,90.868,90.814,11.01151804]
[1772722316204,3.17218469,90.866,90.814,11.01151804]
[1772722316396,3.17218469,90.859,90.79,3.01810519]
[1772722316590,3.17218469,90.857,90.79,3.01810519]
[1772722316997,3.17218469,90.873,90.793,3.01810519]
[1772722317197,3.17218469,90.873,90.8,0.28432314]
[1772722317398,3.17218469,90.869,90.806,0.28432314]
[1772722317617,3.17218469,90.88,90.814,0.28432314]
[1772722317914,3.17218469,90.88,90.829,3.01810519]
[1772722318420,27.50465719,90.894,90.807,126.6422192]
[1772722318421,11.00194734,90.893,90.839,3.01810519]
[1772722318711,3.17218469,90.905,90.855,0.28432314]
[1772722318918,3.17218469,90.899,90.832,3.01810519]
[1772722319088,3.17218469,90.899,90.845,0.28432314]
[1772722319291,14.1725587,90.906,90.854,3.01810519]
[1772722319522,14.17134875,90.916,90.859,0.28432314]
[1772722319687,3.17218469,90.909,90.857,11.00630661]
[1772722319888,3.17218469,90.899,90.845,11.00776047]
[1772722320101,3.17218469,90.899,90.846,3.30242833]
[1772722320308,3.17218469,90.93,90.846,3.30242833]
[1772722320593,1.10330218,90.931,90.845,127.68982761]
[1772722320594,3.17218469,90.909,90.845,11.00776047]
[1772722320804,3.17218469,90.909,90.81,3.01810519]
[1772722320805,11.07404093,90.88,90.81,3.01810519]
[1772722321016,11.07404093,90.88,90.762,44.07126882]
[1772722321017,3.17218469,90.859,90.771,3.01810519]
[1772722321297,0.28432314,90.894,90.771,3.01810519]
[1772722321298,3.17218469,90.819,90.772,3.01810519]
[1772722321508,3.17218469,90.809,90.756,3.01810519]
[1772722321686,38.53861568,90.818,90.743,30.0]
[1772722321687,3.17218469,90.799,90.744,11.02001234]
[1772722321892,3.17218469,90.779,90.727,11.02207722]
[1772722322112,3.17218469,90.769,90.672,3.01810519]
[1772722322304,3.17218469,90.759,90.672,55.14381506]
[1772722322594,3.17218469,90.739,90.677,27.57038719]
[1772722322792,3.17218469,90.729,90.677,27.57038719]
[1772722323609,3.17218469,90.727,90.654,44.12342453]
[1772722323919,3.17218469,90.719,90.651,38.60961268]
[1772722324115,3.17218469,90.709,90.651,38.60961268]
[1772722324295,3.17218469,90.699,90.651,38.60961268]
[1772722324812,3.17218469,90.689,90.651,11.03131791]
[1772722325114,3.17218469,90.669,90.637,11.03302183]
[1772722325318,3.17218469,90.669,90.637,38.61557641]
[1772722325500,3.17218469,90.697,90.639,11.03277838]
[1772722325695,3.17218469,90.679,90.623,3.01810519]
[1772722325890,3.17218469,90.679,90.593,44.1531198]
[1772722325891,10.99386867,90.66,90.608,38.62793571]
[1772722326095,3.17218469,90.649,90.608,11.03655306]
[1772722326355,3.17218469,90.663,90.609,3.01810519]
[1772722326512,3.17218469,90.649,90.58,3.01810519]
[1772722326815,3.17218469,90.639,90.581,3.01810519]
[1772722327210,3.17218469,90.655,90.583,3.01810519]
[1772722327410,3.17218469,90.649,90.583,3.01810519]
[1772722327702,3.17218469,90.647,90.552,3.01810519]
[1772722328014,3.17218469,90.634,90.552,3.01810519]
[1772722328191,11.03168299,90.648,90.552,3.01810519]
[1772722328192,0.28432314,90.628,90.552,3.01810519]
[1772722328398,3.17218469,90.619,90.555,3.01810519]
[1772722329508,3.17218469,90.609,90.549,27.60936067]
[1772722329718,3.17218469,90.609,90.55,3.01810519]
[1772722329898,3.17218469,90.635,90.553,3.01810519]
[1772722330097,3.17218469,90.635,90.557,3.01810519]
[1772722330304,3.17218469,90.635,90.569,3.01810519]
[1772722330505,3.17218469,90.629,90.569,3.01810519]
[1772722330705,3.17218469,90.609,90.549,27.60936067]
[1772722331008,3.17218469,90.609,90.55,3.01810519]
[1772722331618,3.17218469,90.609,90.542,55.22299042]
[1772722331619,3.17218469,90.609,90.554,3.69383402]
[1772722331938,18.90483551,90.62,90.559,3.01810519]
[1772722332096,38.60926725,90.652,90.551,38.6522512]
[1772722332097,18.90483551,90.61,90.552,3.01810519]
[1772722332902,18.90483551,90.6,90.552,3.01810519]
[1772722333104,18.90483551,90.6,90.551,11.04350034]
[1772722333305,18.90483551,90.62,90.552,3.01810519]
[1772722333818,2.43124527,90.619,90.554,3.01810519]
[1772722334119,2.43124527,90.609,90.553,38.65139751]
[1772722334298,0.28432314,90.606,90.553,38.65139751]
[1772722334496,2.43124527,90.616,90.554,3.01810519]
[1772722334823,11.03521336,90.619,90.54,0.34216157]
[1772722334824,18.90483551,90.58,90.545,11.04417913]
[1772722335005,0.28432314,90.586,90.545,11.04417913]
[1772722335319,2.43130921,90.604,90.546,3.01810519]
[1772722335526,2.57347078,90.599,90.546,3.01810519]
[1772722335727,0.28432314,90.597,90.547,11.0439882]
[1772722336020,2.43130921,90.599,90.548,3.01810519]
[1772722336404,2.43137241,90.589,90.547,11.0439882]
[1772722336923,2.4326753,90.617,90.55,3.01810519]
[1772722337106,2.4326753,90.609,90.552,3.01810519]
[1772722337306,2.4326753,90.624,90.554,3.01810519]
[1772722337604,1.10330218,90.644,90.547,127.00586435]
[1772722337605,3.53597748,90.623,90.562,3.01810519]
[1772722337822,3.5372654,90.638,90.562,3.01810519]
[1772722338002,3.5372654,90.638,90.57,3.01810519]
[1772722338215,2.43396322,90.635,90.57,3.01810519]
[1772722338421,2.43396322,90.633,90.57,3.01810519]
[1772722338616,1.10330218,90.632,90.57,3.01810519]
[1772722338842,2.43523634,90.631,90.57,3.01810519]
[1772722339041,1.10330218,90.63,90.57,3.01810519]
[1772722340121,0.28432314,90.627,90.571,38.64371597]
[1772722340326,2.43773889,90.625,90.571,38.64371597]
[1772722340525,1.10330218,90.624,90.572,3.01280392]
[1772722340941,1.10330218,90.628,90.572,3.01280392]
[1772722341142,1.10330218,90.634,90.572,3.01280392]
[1772722341339,0.28432314,90.632,90.572,3.01280392]
[1772722341537,2.43896865,90.619,90.571,11.0410617]
[1772722341725,2.43896865,90.617,90.571,11.0410617]
[1772722342045,0.28432314,90.634,90.571,38.64371597]
[1772722342046,2.44018428,90.615,90.571,38.64371597]
[1772722342428,2.44018428,90.626,90.572,3.01280392]
[1772722342735,1.10330218,90.634,90.572,3.01280392]
[1772722343053,2.44138595,90.607,90.565,11.04179318]
[1772722343233,0.09587552,90.597,90.547,11.0439882]
[1772722343428,1.1991777,90.596,90.547,38.65395871]
[1772722343643,0.09587552,90.595,90.547,11.0439882]
[1772722343842,1.10330218,90.594,90.547,11.0439882]
[1772722344034,1.10330218,90.594,90.547,38.65395871]
[1772722344625,29.94359289,90.59,90.547,38.65395871]
[1772722344934,1.10330218,90.589,90.547,11.0439882]
[1772722345448,1.10330218,90.589,90.548,3.27930702]
[1772722345654,1.10330218,90.598,90.548,3.27930702]
[1772722345828,1.10330218,90.598,90.542,3.27930702]
[1772722346028,1.20270053,90.598,90.542,3.27930702]
[1772722346224,18.90483551,90.59,90.542,3.27930702]
[1772722346425,18.90483551,90.59,90.484,44.20657946]
[1772722346426,11.03821604,90.57,90.516,3.32330411]
[1772722346732,11.14185128,90.569,90.518,27.61874086]
[1772722346939,1.10330218,90.58,90.519,3.32330411]
[1772722347250,1.10330218,90.589,90.527,3.32330411]
[1772722347427,1.10330218,90.589,90.529,3.32330411]
[1772722347849,1.10330218,90.596,90.529,3.32330411]
[1772722348052,1.10330218,90.596,90.533,3.32330411]
[1772722348257,0.10280118,90.589,90.539,3.32330411]
[1772722348458,0.10280118,90.587,90.519,3.60762725]
[1772722348749,0.10280118,90.585,90.519,3.46546568]
[1772722348954,1.10330218,90.584,90.521,3.32330411]
[1772722349930,11.03821604,90.58,90.521,3.32330411]
[1772722350152,1.10330218,90.579,90.521,3.32330411]
[1772722350649,11.03821604,90.56,90.504,3.32330411]
[1772722350850,22.08309619,90.54,90.497,11.05009005]
[1772722351227,0.10530211,90.548,90.498,3.32330411]
[1772722351436,11.03821604,90.56,90.498,3.32330411]
[1772722351638,11.03821604,90.55,90.498,3.32330411]
[1772722351868,0.28432314,90.549,90.498,3.32330411]
[1772722353045,0.10692188,90.547,90.499,11.04984585]
[1772722353350,0.10692188,90.539,90.499,11.04984585]
[1772722353536,1.10330218,90.558,90.5,3.32330411]
[1772722353736,11.03821604,90.55,90.5,3.32330411]
[1772722353944,11.03821604,90.55,90.448,44.2241941]
[1772722353945,0.10771784,90.539,90.497,11.05009005]
[1772722354256,0.10771784,90.539,90.487,3.32330411]
[1772722354455,11.03821604,90.55,90.498,3.32330411]
[1772722354957,0.10850466,90.539,90.482,3.32330411]
[1772722355171,11.04386623,90.548,90.497,3.32330411]
[1772722355453,1.10330218,90.548,90.497,3.32330411]
[1772722355643,1.10330218,90.553,90.497,3.32330411]
[1772722356046,1.10330218,90.566,90.499,3.32330411]
[1772722356245,1.10330218,90.572,90.499,3.32330411]
[1772722356560,1.10330218,90.572,90.5,0.28432314]
[1772722356762,1.10330218,90.584,90.51,0.28432314]
[1772722356935,1.10330218,90.584,90.52,0.28432314]
[1772722357135,11.03821604,90.61,90.536,0.28432314]
[1772722357336,11.03821604,90.61,90.539,3.32330411]
[1772722357337,1.10330218,90.609,90.539,3.32330411]
[1772722357851,0.11081131,90.608,90.539,3.32330411]
[1772722358063,1.10330218,90.607,90.539,3.32330411]
[1772722358663,1.10330218,90.607,90.54,0.28432314]
[1772722358857,1.10330218,90.619,90.549,3.32330411]
[1772722359156,0.11156259,90.609,90.551,3.32330411]
[1772722359371,0.11156259,90.607,90.551,3.32330411]
[1772722359544,0.28432314,90.599,90.551,3.32330411]
[1772722359859,1.10330218,90.598,90.551,3.32330411]
[1772722360353,1.10330218,90.604,90.551,3.32330411]
[1772722360535,1.21560743,90.614,90.551,3.32330411]
[1772722360741,0.11230525,90.609,90.551,3.32330411]
[1772722360935,0.11303938,90.607,90.551,3.32330411]
[1772722361138,0.11303938,90.604,90.552,41.97512847]
[1772722361361,1.10330218,90.603,90.553,3.32330411]
[1772722361536,0.11303938,90.602,90.553,3.32330411]
[1772722361737,0.11303938,90.599,90.553,3.32330411]
[1772722361973,1.21706725,90.598,90.553,3.32330411]
[1772722362171,1.10330218,90.598,90.553,3.32330411]
[1772722362464,11.03821604,90.58,90.538,11.04508604]
[1772722362667,1.10330218,90.579,90.538,38.65780114]
[1772722362867,1.10330218,90.579,90.523,3.32330411]
[1772722362868,0.11448243,90.578,90.524,38.66377977]
[1772722363042,1.10330218,90.577,90.527,3.32330411]
[1772722363668,0.11448243,90.578,90.526,38.66292556]
[1772722363844,1.21849373,90.577,90.527,3.32330411]
[1772722364040,0.11519155,90.576,90.527,3.32330411]
[1772722364236,1.10330218,90.575,90.527,3.32330411]
[1772722365050,0.28432314,90.573,90.528,41.9853755]
[1772722365358,1.10330218,90.572,90.529,3.32330411]
[1772722365549,0.11589253,90.603,90.529,3.32330411]
[1772722365550,11.03885421,90.59,90.529,3.32330411]
[1772722365743,1.38762532,90.589,90.529,3.32330411]
[1772722366061,0.11658545,90.588,90.529,3.32330411]
[1772722366240,0.25874702,90.569,90.516,11.04777055]
[1772722366441,1.10330218,90.587,90.516,11.04777055]
[1772722366442,1.10330218,90.568,90.517,3.32330411]
[1772722366641,1.10330218,90.597,90.519,3.32330411]
[1772722366841,11.03801492,90.596,90.519,3.32330411]
[1772722367053,1.24546375,90.595,90.519,3.32330411]
[1772722367274,11.0382586,90.594,90.521,3.60762725]
[1772722367448,1.10330218,90.593,90.521,3.60762725]
[1772722368051,0.11794751,90.589,90.521,3.32330411]
[1772722368266,0.11794751,90.587,90.521,3.32330411]
[1772722368471,0.11794751,90.585,90.521,3.32330411]
[1772722368676,0.11794751,90.578,90.521,3.32330411]
[1772722368978,0.11927847,90.576,90.521,3.32330411]
[1772722369279,0.11927847,90.576,90.5,0.28432314]
[1772722369280,11.15997447,90.574,90.523,3.29744248]
[1772722369577,1.10330218,90.573,90.523,3.29744248]
[1772722369759,1.50755782,90.573,90.523,3.29744248]
[1772722370968,0.12057902,90.549,90.498,3.29744248]
[1772722371278,0.12057902,90.539,90.486,3.29744248]
[1772722371456,11.15879506,90.53,90.486,3.29744248]
[1772722371654,11.03821604,90.52,90.474,3.29744248]
[1772722371858,11.03821604,90.53,90.474,3.29744248]
[1772722372355,0.12121812,90.531,90.474,3.29744248]
[1772722372550,0.12121812,90.519,90.471,11.05326568]
[1772722372772,0.12184987,90.509,90.465,11.05390262]
[1772722372976,0.12184987,90.509,90.471,11.05326568]
[1772722373158,11.03821604,90.52,90.471,11.05326568]
[1772722373362,38.66591544,90.519,90.471,11.05326568]
[1772722373561,38.66591544,90.519,90.472,3.29744248]
[1772722373562,11.04740441,90.519,90.472,3.29744248]
[1772722373778,11.04740441,90.519,90.458,3.29744248]
[1772722373779,0.12184987,90.518,90.458,3.29744248]
[1772722373961,0.12184987,90.518,90.47,11.25326995]
[1772722374164,27.61542868,90.53,90.471,3.29744248]
[1772722374378,11.03821604,90.53,90.471,3.29744248]
[1772722374562,0.28432314,90.529,90.471,3.29744248]
[1772722374878,0.28432314,90.519,90.471,3.29744248]
[1772722375454,11.3317686,90.519,90.473,3.29744248]
[1772722376062,1.10330218,90.525,90.473,3.29744248]
[1772722376461,11.04325643,90.553,90.475,3.29744248]
[1772722376662,11.03821604,90.55,90.479,3.29744248]
[1772722376862,0.12430515,90.539,90.479,3.29744248]
[1772722377059,1.10330218,90.538,90.479,3.29744248]
[1772722377487,12.14847879,90.538,90.481,3.29744248]
[1772722377669,0.28432314,90.537,90.481,3.29744248]
[1772722377871,1.10330218,90.536,90.481,3.29744248]
[1772722378465,1.22820363,90.536,90.481,3.29744248]
[1772722378970,1.10330218,90.536,90.481,3.29744248]
[1772722379166,1.10330218,90.541,90.481,3.29744248]
[1772722379367,0.1254909,90.529,90.481,3.29744248]
[1772722379568,11.04642813,90.527,90.482,14.3493644]
[1772722379869,0.1254909,90.529,90.482,14.3493644]
[1772722379870,1.22879308,90.529,90.483,3.29744248]
[1772722380065,1.10330218,90.539,90.483,3.29744248]
[1772722380291,0.12607357,90.529,90.472,3.29744248]
[1772722380465,11.03821604,90.54,90.472,3.29744248]
[1772722380782,1.10330218,90.539,90.472,3.29744248]
[1772722381165,1.10330218,90.552,90.477,0.28432314]
[1772722381382,1.10330218,90.552,90.49,3.29744248]
[1772722381572,1.10330218,90.558,90.492,3.29744248]
[1772722382170,1.10330218,90.569,90.494,3.29744248]
[1772722382366,0.12721893,90.568,90.5,3.29744248]
[1772722382564,0.12721893,90.558,90.5,3.29744248]
[1772722382786,11.03821604,90.55,90.5,3.29744248]
[1772722382988,11.03821604,90.53,90.491,11.05082273]
[1772722383178,0.12778176,90.539,90.491,11.05082273]
[1772722383179,1.10330218,90.529,90.491,11.05082273]
[1772722383376,1.10330218,90.529,90.48,27.63019806]
[1772722383377,0.12778176,90.528,90.474,3.29744248]
[1772722383585,0.14216157,90.509,90.447,3.29744248]
[1772722383782,1.10330218,90.508,90.452,3.29744248]
[1772722384093,0.28432314,90.518,90.452,3.29744248]
[1772722384094,1.10330218,90.517,90.452,3.29744248]
[1772722384388,11.04203703,90.563,90.465,0.28432314]
[1772722384567,0.28432314,90.562,90.482,3.29744248]
[1772722384771,0.28432314,90.562,90.49,3.29744248]
[1772722385067,0.12888809,90.561,90.49,3.29744248]
[1772722385271,11.04203703,90.563,90.491,0.28432314]
[1772722385490,15.99253163,90.589,90.505,3.29744248]
[1772722385794,5.23853058,90.588,90.505,3.29744248]
[1772722386005,27.59789723,90.587,90.507,3.29744248]
[1772722386185,0.12943175,90.586,90.509,3.29744248]
[1772722386386,0.12943175,90.579,90.509,3.29744248]
[1772722386585,0.12943175,90.568,90.509,3.29744248]
[1772722387477,0.12996916,90.548,90.487,3.29744248]
[1772722387776,0.28432314,90.548,90.487,3.29744248]
[1772722387975,0.1305004,90.571,90.489,3.29744248]
[1772722388294,0.28432314,90.559,90.489,3.29744248]
[1772722388674,0.13102554,90.558,90.489,3.29744248]
[1772722388875,0.13102554,90.584,90.493,3.29744248]
[1772722389071,11.17006805,90.57,90.499,3.29744248]
[1772722389277,0.13102554,90.548,90.499,3.29744248]
[1772722389494,5.74125497,90.584,90.501,3.29744248]
[1772722389689,5.74125497,90.584,90.504,3.29744248]
[1772722389690,11.03959904,90.583,90.504,3.29744248]
[1772722389892,0.28432314,90.579,90.504,3.29744248]
[1772722390283,0.13154465,90.579,90.504,3.29744248]
[1772722390901,3.69383402,90.596,90.503,3.69383402]
[1772722390902,11.0390804,90.588,90.506,3.29744248]
[1772722391276,11.03764942,90.599,90.51,3.29744248]
[1772722391477,0.13205779,90.615,90.523,3.29744248]
[1772722391801,11.03399574,90.629,90.539,0.14216157]
[1772722391976,11.03399574,90.629,90.557,0.28432314]
[1772722392177,27.71392009,90.641,90.56,3.29744248]
[1772722392178,11.03265666,90.64,90.56,3.29744248]
[1772722392376,44.11761602,90.667,90.55,0.28432314]
[1772722392377,11.16327453,90.656,90.567,0.28432314]
[1772722392597,11.16327453,90.656,90.542,1.06980819]
[1772722392598,0.13256504,90.649,90.57,3.29744248]
[1772722393195,11.03070949,90.656,90.576,3.29744248]
[1772722393501,0.1,90.67,90.599,3.29744248]
[1772722394579,0.41788527,90.669,90.599,3.29744248]
[1772722394983,0.28432314,90.669,90.599,3.29744248]
[1772722395496,0.1,90.67,90.599,3.29744248]
[1772722395679,0.1,90.67,90.604,3.29744248]
[1772722395881,0.1,90.67,90.609,0.28432314]
[1772722396186,0.1,90.67,90.61,3.29744248]
[1772722397906,0.1,90.67,90.615,3.29744248]
[1772722398998,0.1,90.67,90.611,38.62665679]
[1772722398999,0.13641882,90.717,90.618,0.28432314]
[1772722399183,0.13641882,90.717,90.616,0.28432314]
[1772722399184,11.03904251,90.76,90.633,4.82477569]
[1772722399384,11.03904251,90.76,90.646,3.27930702]
[1772722399385,27.68355959,90.754,90.646,3.27930702]
[1772722399701,0.13641882,90.767,90.66,0.28432314]
[1772722399887,0.13687598,90.795,90.663,3.27930702]
[1772722400097,44.03923835,90.829,90.672,3.27930702]
[1772722400098,11.01697716,90.769,90.672,3.27930702]
[1772722400297,0.13687598,90.746,90.68,3.27930702]
[1772722400605,0.13687598,90.746,90.66,3.69383402]
[1772722400606,0.13687598,90.782,90.689,0.28432314]
[1772722400807,0.13732789,90.812,90.703,0.28432314]
[1772722401109,0.13732789,90.809,90.726,3.27930702]
[1772722401295,0.13732789,90.809,90.736,3.27930702]
[1772722401496,0.13732789,90.809,90.676,9.73450446]
[1772722401497,0.13732789,90.789,90.695,3.27930702]
[1772722401794,0.13777461,90.787,90.711,3.27930702]
[1772722402025,0.13777461,90.778,90.711,3.27930702]
[1772722402604,0.13777461,90.814,90.715,3.27930702]
[1772722402804,0.13777461,90.813,90.735,3.27930702]
[1772722402979,11.03904251,90.81,90.741,3.27930702]
[1772722403179,0.13821619,90.799,90.741,3.27930702]
[1772722403706,0.13865271,90.788,90.719,3.27930702]
[1772722403999,11.01390151,90.795,90.728,0.28432314]
[1772722404182,11.01390151,90.795,90.731,3.27930702]
[1772722404379,11.17769522,90.82,90.731,3.27930702]
[1772722404600,0.13865271,90.818,90.742,0.28432314]
[1772722404785,0.13865271,90.818,90.747,3.27930702]
[1772722404980,11.03904251,90.8,90.747,3.27930702]
[1772722405204,0.28124578,90.799,90.747,3.27930702]
[1772722405502,0.14216157,90.818,90.747,2.61405563]
[1772722405803,1.08908528,90.809,90.748,38.5683431]
[1772722406003,0.80476214,90.808,90.748,38.5683431]
[1772722406305,0.28432314,90.779,90.725,11.02232019]
[1772722406494,1.08950693,90.777,90.725,11.02232019]
[1772722406690,11.03904251,90.77,90.725,11.02232019]
[1772722407017,11.8446431,90.8,90.725,137.77900246]
[1772722407309,0.80560059,90.798,90.726,0.28432314]
[1772722407502,4.82477569,90.825,90.726,0.28432314]
[1772722407503,11.03904251,90.81,90.73,3.16011441]
[1772722407809,1.09033575,90.808,90.734,3.16011441]
[1772722408014,0.80601261,90.805,90.734,3.16011441]
[1772722408503,0.80601261,90.798,90.734,3.16011441]
[1772722408701,0.80641989,90.769,90.727,11.02197174]
[1772722408907,1.09074303,90.769,90.727,11.02197174]
[1772722409206,1.09074303,90.759,90.713,11.02372122]
[1772722409394,11.03904251,90.75,90.713,11.02372122]
[1772722409595,0.80641989,90.781,90.714,3.16011441]
[1772722409908,11.01576355,90.779,90.716,3.16011441]
[1772722410097,0.28432314,90.778,90.716,3.16011441]
[1772722410406,0.80682249,90.825,90.718,3.69383402]
[1772722410709,0.80731963,90.829,90.726,3.16011441]
[1772722410908,0.80731963,90.829,90.738,3.16011441]
[1772722411209,38.53182728,90.834,90.72,0.5]
[1772722411210,0.80731963,90.809,90.72,0.5]
[1772722411414,0.80731963,90.799,90.738,3.16011441]
[1772722411592,0.28432314,90.799,90.738,3.16011441]
[1772722411901,0.28432314,90.799,90.72,0.5]
[1772722411902,11.03904251,90.79,90.74,3.16011441]
[1772722412102,0.80781105,90.779,90.739,11.02061957]
[1772722412313,1.09213419,90.778,90.729,11.02183425]
[1772722412490,0.94997262,90.778,90.729,11.02183425]
[1772722412682,0.94997262,90.778,90.727,3.16011441]
[1772722412889,0.28432314,90.759,90.687,3.16011441]
[1772722413107,0.80829683,90.788,90.693,0.28432314]
[1772722413401,11.03904251,90.76,90.706,3.16011441]
[1772722413617,0.80829683,90.789,90.706,3.16011441]
[1772722413787,11.03904251,90.77,90.708,3.16011441]
[1772722413992,5.10909883,90.776,90.708,3.16011441]
[1772722413993,0.28432314,90.759,90.708,3.16011441]
[1772722414411,11.03904251,90.77,90.708,3.16011441]
[1772722414604,11.82272069,90.794,90.713,3.16011441]
[1772722414800,0.80925172,90.789,90.717,3.16011441]
[1772722415500,1.09357486,90.789,90.717,3.16011441]
[1772722415698,11.01260943,90.805,90.727,3.16011441]
[1772722416006,11.01260943,90.805,90.711,1.10240213]
[1772722416007,38.54413302,90.805,90.732,3.16011441]
[1772722416208,11.01260943,90.805,90.732,3.16011441]
[1772722416700,0.28432314,90.804,90.732,3.16011441]
[1772722416904,11.01260943,90.805,90.736,3.16011441]
[1772722417104,0.28432314,90.804,90.736,3.16011441]
[1772722417408,0.8101848,90.823,90.736,3.16011441]
[1772722417409,5.63496049,90.835,90.737,0.28432314]
[1772722417716,0.81064331,90.829,90.746,3.16011441]
[1772722418008,11.01103305,90.818,90.753,3.16011441]
[1772722418193,11.00969954,90.829,90.757,3.16011441]
[1772722418401,0.28432314,90.828,90.757,3.16011441]
[1772722418600,0.81064331,90.828,90.757,3.16011441]
[1772722418802,1.09496645,90.828,90.757,3.16011441]
[1772722418997,0.81109656,90.838,90.767,3.16011441]
[1772722419198,0.81109656,90.817,90.767,3.16011441]
[1772722419524,11.03904251,90.83,90.767,3.16011441]
[1772722419715,0.81109656,90.828,90.767,3.16011441]
[1772722420214,0.8115446,90.825,90.769,3.16011441]
[1772722420791,11.85103001,90.83,90.769,3.16011441]
[1772722420992,0.8119875,90.83,90.769,3.16011441]
[1772722421293,0.8119875,90.829,90.769,3.16011441]
[1772722422610,0.8119875,90.829,90.73,1.10217127]
[1772722422611,0.81242531,90.819,90.77,11.01685578]
[1772722422822,0.81285809,90.799,90.712,3.16011441]
[1772722423008,0.81285809,90.779,90.712,3.16011441]
[1772722423188,0.81285809,90.779,90.715,3.16011441]
[1772722423502,0.81285809,90.806,90.72,0.14216157]
[1772722423817,0.81285809,90.821,90.744,0.14216157]
[1772722423996,0.8132859,90.819,90.747,3.16011441]